[Event "*** Titled Tuesday Blitz"]
[Site "Chess.com"]
[Date "2018.12.04"]
[Round "4"]
[White "amiralfio"]
[Black "champ2005"]
[Result "0-1"]
[WhiteElo "2421"]
[BlackElo "2671"]
[TimeControl "180+2"]
[EndTime "13:49:44 PST"]
[Termination "champ2005 won by checkmate"]

1. d4 {[%clk 0:03:01.9]} 1... Nf6 {[%clk 0:03:00.6]} 2. Nf3 {[%clk 0:03:03.1]}
2... e6 {[%clk 0:03:01.5]} 3. c4 {[%clk 0:03:02.8]} 3... d5 {[%clk 0:03:01.5]}
4. Nc3 {[%clk 0:02:55.7]} 4... c6 {[%clk 0:03:02.4]} 5. e3 {[%clk 0:02:54.9]}
5... dxc4 {[%clk 0:03:02.7]} 6. Bxc4 {[%clk 0:02:55.3]} 6... b5 {[%clk
0:03:02.9]} 7. Bd3 {[%clk 0:02:56.3]} 7... Bb7 {[%clk 0:03:02.9]} 8. e4 {[%clk
0:02:57.1]} 8... a6 {[%clk 0:03:02.1]} 9. O-O {[%clk 0:02:57.4]} 9... c5 {[%clk
0:03:02.4]} 10. dxc5 {[%clk 0:02:53.1]} 10... Bxc5 {[%clk 0:03:01.5]} 11. Qe2
{[%clk 0:02:54.4]} 11... Nbd7 {[%clk 0:02:43.8]} 12. Rd1 {[%clk 0:02:51.7]}
12... Qc7 {[%clk 0:02:37.6]} 13. Bg5 {[%clk 0:02:32.8]} 13... Ne5 {[%clk
0:02:32.2]} 14. Nxe5 {[%clk 0:01:50.4]} 14... Qxe5 {[%clk 0:02:32.2]} 15. Bxf6
{[%clk 0:01:47.6]} 15... gxf6 {[%clk 0:02:14.4]} 16. Bxb5+ {[%clk 0:01:47.8]}
16... axb5 {[%clk 0:01:50.6]} 17. Qxb5+ {[%clk 0:01:47.2]} 17... Kf8 {[%clk
0:01:51]} 18. Qxb7 {[%clk 0:01:48.1]} 18... Rb8 {[%clk 0:01:52.1]} 19. Qc6
{[%clk 0:01:19.4]} 19... Rxb2 {[%clk 0:01:49.4]} 20. Na4 {[%clk 0:00:42.5]}
20... Bxf2+ {[%clk 0:01:30.7]} 21. Kh1 {[%clk 0:00:42.2]} 21... Rb8 {[%clk
0:01:26.8]} 22. Rac1 {[%clk 0:00:40.4]} 22... Kg7 {[%clk 0:01:22.3]} 23. Qc2
{[%clk 0:00:32.4]} 23... Bh4 {[%clk 0:01:06.1]} 24. Qe2 {[%clk 0:00:26.5]} 24...
Rhc8 {[%clk 0:00:54.4]} 25. Rxc8 {[%clk 0:00:19.2]} 25... Rxc8 {[%clk
0:00:54.4]} 26. Qg4+ {[%clk 0:00:19.7]} 26... Bg5 {[%clk 0:00:45.4]} 27. h4
{[%clk 0:00:20.3]} 27... h5 {[%clk 0:00:46.3]} 28. Qxh5 {[%clk 0:00:18.6]} 28...
Rh8 {[%clk 0:00:46.6]} 29. Qf3 {[%clk 0:00:18.3]} 29... Rxh4+ {[%clk 0:00:43.1]}
30. Kg1 {[%clk 0:00:19.6]} 30... Rxe4 {[%clk 0:00:42.2]} 31. Nc3 {[%clk
0:00:10.5]} 31... Re3 {[%clk 0:00:36.1]} 32. Qa8 {[%clk 0:00:11.5]} 32... Rxc3
{[%clk 0:00:34.7]} 33. Rd8 {[%clk 0:00:12.7]} 33... Rc1+ {[%clk 0:00:35.5]} 34.
Kf2 {[%clk 0:00:12.8]} 34... Qe3# {[%clk 0:00:36.5]} 0-1

[Event "*** Titled Tuesday Blitz"]
[Site "Chess.com"]
[Date "2018.12.04"]
[Round "4"]
[White "Muguet7"]
[Black "Oligan22"]
[Result "1-0"]
[WhiteElo "2440"]
[BlackElo "2245"]
[TimeControl "180+2"]
[EndTime "13:49:44 PST"]
[Termination "Muguet7 won by resignation"]

1. d4 {[%clk 0:03:01.9]} 1... d5 {[%clk 0:02:58]} 2. c4 {[%clk 0:03:02.5]} 2...
dxc4 {[%clk 0:02:58.6]} 3. Nf3 {[%clk 0:03:01.7]} 3... Nf6 {[%clk 0:02:59.5]} 4.
e3 {[%clk 0:03:02.8]} 4... e6 {[%clk 0:03:00.3]} 5. Bxc4 {[%clk 0:03:03.9]} 5...
c5 {[%clk 0:03:01.5]} 6. O-O {[%clk 0:03:05.1]} 6... a6 {[%clk 0:03:01.5]} 7. b3
{[%clk 0:02:52.7]} 7... b5 {[%clk 0:02:59.6]} 8. Bd3 {[%clk 0:02:49.9]} 8... Bb7
{[%clk 0:02:46.9]} 9. Bb2 {[%clk 0:02:50.2]} 9... Nbd7 {[%clk 0:02:33.7]} 10. a4
{[%clk 0:02:49.6]} 10... b4 {[%clk 0:02:35]} 11. Nbd2 {[%clk 0:02:50.2]} 11...
cxd4 {[%clk 0:02:32.9]} 12. Nxd4 {[%clk 0:02:46.7]} 12... Ne5 {[%clk 0:02:19.1]}
13. Bc2 {[%clk 0:02:41.4]} 13... Bd6 {[%clk 0:02:17]} 14. h3 {[%clk 0:02:37.1]}
14... O-O {[%clk 0:02:15.3]} 15. Qe2 {[%clk 0:02:37.3]} 15... Rc8 {[%clk
0:02:13.4]} 16. Rac1 {[%clk 0:02:37]} 16... Qe7 {[%clk 0:02:08.4]} 17. Rfd1
{[%clk 0:02:33.4]} 17... Rfd8 {[%clk 0:02:08.7]} 18. f4 {[%clk 0:02:33.1]} 18...
Ned7 {[%clk 0:02:00.3]} 19. Nc4 {[%clk 0:02:33.2]} 19... Bb8 {[%clk 0:01:58.8]}
20. Na5 {[%clk 0:02:25.9]} 20... Nc5 {[%clk 0:01:53.9]} 21. Nxb7 {[%clk
0:02:22.2]} 21... Qxb7 {[%clk 0:01:55.8]} 22. Nf3 {[%clk 0:02:17.1]} 22... Nce4
{[%clk 0:01:50.8]} 23. Bd3 {[%clk 0:01:55.4]} 23... Rxc1 {[%clk 0:01:41.3]} 24.
Rxc1 {[%clk 0:01:55.7]} 24... Ng3 {[%clk 0:01:37.1]} 25. Qc2 {[%clk 0:01:55.1]}
25... h6 {[%clk 0:00:55.9]} 26. Bxf6 {[%clk 0:01:41.9]} 26... gxf6 {[%clk
0:00:56.4]} 27. Kh2 {[%clk 0:01:41.3]} 27... Nh5 {[%clk 0:00:47]} 28. Be4 {[%clk
0:01:39.1]} 28... Qb6 {[%clk 0:00:44.2]} 29. Qc5 {[%clk 0:01:29.4]} 29... Qxc5
{[%clk 0:00:38.9]} 30. Rxc5 {[%clk 0:01:30.3]} 30... f5 {[%clk 0:00:39.4]} 31.
Bb7 {[%clk 0:01:28.7]} 31... Ba7 {[%clk 0:00:40]} 32. Re5 {[%clk 0:01:21.1]}
32... Rd6 {[%clk 0:00:34.9]} 33. g4 {[%clk 0:01:13]} 33... Ng7 {[%clk
0:00:29.1]} 34. Kg3 {[%clk 0:01:06.1]} 34... f6 {[%clk 0:00:20.9]} 35. Ra5
{[%clk 0:01:06.4]} 35... Bxe3 {[%clk 0:00:21.9]} 36. Rxa6 {[%clk 0:01:06.7]}
36... Rd3 {[%clk 0:00:17.1]} 37. Ra8+ {[%clk 0:01:05.7]} 37... Kf7 {[%clk
0:00:17]} 38. a5 {[%clk 0:01:03.4]} 38... e5 {[%clk 0:00:18.1]} 39. fxe5 {[%clk
0:01:02.7]} 39... f4+ {[%clk 0:00:18.4]} 40. Kg2 {[%clk 0:01:02.4]} 40... Rxb3
{[%clk 0:00:19.1]} 41. Bd5+ {[%clk 0:01:02.6]} 41... Kg6 {[%clk 0:00:18.1]} 42.
Bxb3 {[%clk 0:01:03.4]} 1-0

[Event "*** Titled Tuesday Blitz"]
[Site "Chess.com"]
[Date "2018.12.04"]
[Round "4"]
[White "AdrianaNikolova"]
[Black "vpantev"]
[Result "0-1"]
[WhiteElo "2393"]
[BlackElo "2631"]
[TimeControl "180+2"]
[EndTime "13:49:45 PST"]
[Termination "vpantev won by resignation"]

1. d4 {[%clk 0:03:01.9]} 1... Nf6 {[%clk 0:03:00.6]} 2. Bf4 {[%clk 0:03:02.2]}
2... d5 {[%clk 0:02:58.5]} 3. Nf3 {[%clk 0:02:57.4]} 3... e6 {[%clk 0:02:59.1]}
4. Nbd2 {[%clk 0:02:55.4]} 4... Bd6 {[%clk 0:02:57.8]} 5. Ne5 {[%clk 0:02:56.5]}
5... c5 {[%clk 0:02:57.8]} 6. c3 {[%clk 0:02:57.3]} 6... Qc7 {[%clk 0:02:57.3]}
7. Ndf3 {[%clk 0:02:57.5]} 7... Nh5 {[%clk 0:02:53.5]} 8. Be3 {[%clk 0:02:50]}
8... cxd4 {[%clk 0:02:49.5]} 9. cxd4 {[%clk 0:02:47.9]} 9... Nd7 {[%clk
0:02:46.4]} 10. Nd3 {[%clk 0:02:31.3]} 10... O-O {[%clk 0:02:39.3]} 11. g3
{[%clk 0:02:32.3]} 11... b6 {[%clk 0:02:34]} 12. Bg2 {[%clk 0:02:32.3]} 12...
Ba6 {[%clk 0:02:34.9]} 13. Rc1 {[%clk 0:02:32.4]} 13... Qb7 {[%clk 0:02:33.6]}
14. Nde5 {[%clk 0:02:28.5]} 14... Nhf6 {[%clk 0:02:26.2]} 15. O-O {[%clk
0:02:21.1]} 15... Rac8 {[%clk 0:02:26.4]} 16. Rxc8 {[%clk 0:02:17.8]} 16... Rxc8
{[%clk 0:02:25.9]} 17. Bf4 {[%clk 0:02:14.5]} 17... Be7 {[%clk 0:02:25.8]} 18.
Ng5 {[%clk 0:01:59.6]} 18... Rf8 {[%clk 0:02:24]} 19. Re1 {[%clk 0:01:53.7]}
19... h6 {[%clk 0:02:24]} 20. Ngf3 {[%clk 0:01:54.6]} 20... Rc8 {[%clk
0:02:18.2]} 21. Nxd7 {[%clk 0:01:49.4]} 21... Nxd7 {[%clk 0:02:17.8]} 22. Qd2
{[%clk 0:01:42.5]} 22... Nf6 {[%clk 0:02:05.8]} 23. Ne5 {[%clk 0:01:34.2]} 23...
Ne4 {[%clk 0:02:05.6]} 24. Qe3 {[%clk 0:01:07.3]} 24... g5 {[%clk 0:01:56.3]}
25. Bxe4 {[%clk 0:00:50.8]} 25... dxe4 {[%clk 0:01:55.3]} 26. h4 {[%clk
0:00:50.7]} 26... gxf4 {[%clk 0:01:51.4]} 27. Qxf4 {[%clk 0:00:52.6]} 27... Bf8
{[%clk 0:01:49.3]} 28. Ng4 {[%clk 0:00:48.7]} 28... Bg7 {[%clk 0:01:36.6]} 29.
Nxh6+ {[%clk 0:00:37.9]} 29... Bxh6 {[%clk 0:01:37.1]} 30. Qxh6 {[%clk
0:00:39.8]} 30... Qd5 {[%clk 0:01:34.9]} 31. Qf6 {[%clk 0:00:24.9]} 31... Qf5
{[%clk 0:01:16.7]} 32. Qe7 {[%clk 0:00:24.5]} 32... e3 {[%clk 0:00:59.9]} 33. f3
{[%clk 0:00:20.8]} 33... Rc2 {[%clk 0:00:45.8]} 34. Qe8+ {[%clk 0:00:18.6]}
34... Kg7 {[%clk 0:00:42.6]} 35. Qa4 {[%clk 0:00:20.5]} 35... Rxe2 {[%clk
0:00:36.5]} 36. Rf1 {[%clk 0:00:20.4]} 36... Qh3 {[%clk 0:00:35.6]} 0-1

[Event "*** Titled Tuesday Blitz"]
[Site "Chess.com"]
[Date "2018.12.04"]
[Round "4"]
[White "WinnerOleg"]
[Black "dmosesov"]
[Result "1-0"]
[WhiteElo "2328"]
[BlackElo "2344"]
[TimeControl "180+2"]
[EndTime "13:49:49 PST"]
[Termination "WinnerOleg won on time"]

1. d4 {[%clk 0:03:01.9]} 1... Nf6 {[%clk 0:03:00.5]} 2. c4 {[%clk 0:02:57.5]}
2... e6 {[%clk 0:03:01.4]} 3. Nf3 {[%clk 0:02:56.7]} 3... a6 {[%clk 0:02:55.2]}
4. Nc3 {[%clk 0:02:54.3]} 4... d5 {[%clk 0:02:55.9]} 5. cxd5 {[%clk 0:02:49.2]}
5... exd5 {[%clk 0:02:57.8]} 6. Bg5 {[%clk 0:02:50]} 6... Be6 {[%clk 0:02:58.4]}
7. Qb3 {[%clk 0:02:45.2]} 7... Ra7 {[%clk 0:02:32.6]} 8. Bxf6 {[%clk 0:02:39.2]}
8... Qxf6 {[%clk 0:02:23.1]} 9. Nxd5 {[%clk 0:02:19.8]} 9... Bxd5 {[%clk
0:01:38.6]} 10. Qxd5 {[%clk 0:02:20.5]} 10... Bb4+ {[%clk 0:01:40.2]} 11. Kd1
{[%clk 0:02:08.5]} 11... O-O {[%clk 0:01:40.8]} 12. e3 {[%clk 0:02:08.9]} 12...
Rd8 {[%clk 0:01:05.2]} 13. Qg5 {[%clk 0:01:58]} 13... Qxg5 {[%clk 0:00:37]} 14.
Nxg5 {[%clk 0:01:59.9]} 14... c5 {[%clk 0:00:38.3]} 15. a3 {[%clk 0:01:54.8]}
15... Ba5 {[%clk 0:00:37.9]} 16. b4 {[%clk 0:01:55.8]} 16... cxb4 {[%clk
0:00:34.8]} 17. axb4 {[%clk 0:01:57.7]} 17... Bxb4 {[%clk 0:00:36.2]} 18. Bc4
{[%clk 0:01:58.1]} 18... b5 {[%clk 0:00:20.2]} 19. Bd3 {[%clk 0:01:44]} 19... h6
{[%clk 0:00:19.6]} 20. Ne4 {[%clk 0:01:43.6]} 20... Nc6 {[%clk 0:00:17.9]} 21.
Ke2 {[%clk 0:01:44.8]} 21... Bf8 {[%clk 0:00:04]} 22. Rhc1 {[%clk 0:01:44.6]}
22... Nb4 {[%clk 0:00:03.1]} 23. Bxb5 {[%clk 0:01:43.6]} 23... Re7 {[%clk
0:00:04.3]} 24. Bd3 {[%clk 0:01:42.3]} 24... f5 {[%clk 0:00:04.8]} 25. Ng3
{[%clk 0:01:23.8]} 25... f4 {[%clk 0:00:05.7]} 26. Nf5 {[%clk 0:01:24.5]} 26...
Red7 {[%clk 0:00:05]} 27. Bxa6 {[%clk 0:00:57.3]} 27... fxe3 {[%clk 0:00:04]}
28. fxe3 {[%clk 0:00:57.4]} 28... Kh8 {[%clk 0:00:02.9]} 29. Bc4 {[%clk
0:00:44.9]} 29... Rf7 {[%clk 0:00:04]} 30. Bxf7 {[%clk 0:00:45.5]} 30... Rb8
{[%clk 0:00:02.5]} 31. Rab1 {[%clk 0:00:45.7]} 31... Ra8 {[%clk 0:00:03.1]} 32.
e4 {[%clk 0:00:40.7]} 32... Ra3 {[%clk 0:00:05]} 33. e5 {[%clk 0:00:39.6]} 1-0

[Event "*** Titled Tuesday Blitz"]
[Site "Chess.com"]
[Date "2018.12.04"]
[Round "4"]
[White "Durarbayli"]
[Black "Alexander_Donchenko"]
[Result "1-0"]
[WhiteElo "2714"]
[BlackElo "2681"]
[TimeControl "180+2"]
[EndTime "13:49:51 PST"]
[Termination "Durarbayli won by resignation"]

1. e4 {[%clk 0:03:01.3]} 1... c5 {[%clk 0:02:58.8]} 2. Nf3 {[%clk 0:03:02.4]}
2... d6 {[%clk 0:03:00.1]} 3. d4 {[%clk 0:03:03.8]} 3... cxd4 {[%clk 0:03:02]}
4. Nxd4 {[%clk 0:03:05.3]} 4... Nf6 {[%clk 0:03:03.5]} 5. Nc3 {[%clk 0:03:06.9]}
5... a6 {[%clk 0:03:05.2]} 6. Bc4 {[%clk 0:03:05.9]} 6... e6 {[%clk 0:03:06]} 7.
Bb3 {[%clk 0:03:06.1]} 7... Nbd7 {[%clk 0:03:06.4]} 8. f4 {[%clk 0:03:06.2]}
8... Nc5 {[%clk 0:03:05.3]} 9. Qf3 {[%clk 0:03:05.8]} 9... Be7 {[%clk
0:03:03.4]} 10. Be3 {[%clk 0:03:05.4]} 10... O-O {[%clk 0:03:02.9]} 11. f5
{[%clk 0:03:06.8]} 11... Qc7 {[%clk 0:02:58.4]} 12. g4 {[%clk 0:02:55.7]} 12...
Nxb3 {[%clk 0:02:44.6]} 13. axb3 {[%clk 0:02:30]} 13... Nd7 {[%clk 0:02:43.9]}
14. g5 {[%clk 0:01:48.2]} 14... Ne5 {[%clk 0:02:36.9]} 15. Qg3 {[%clk
0:01:47.5]} 15... Re8 {[%clk 0:02:11.1]} 16. h4 {[%clk 0:01:29.2]} 16... Bf8
{[%clk 0:01:45.8]} 17. h5 {[%clk 0:01:04.7]} 17... exf5 {[%clk 0:01:19.8]} 18.
exf5 {[%clk 0:01:05.7]} 18... d5 {[%clk 0:01:09.9]} 19. Rg1 {[%clk 0:00:33.2]}
19... Bd6 {[%clk 0:01:00.2]} 20. Qf2 {[%clk 0:00:21.5]} 20... Nc6 {[%clk
0:00:46]} 21. Nxd5 {[%clk 0:00:17.8]} 21... Qd8 {[%clk 0:00:43.2]} 22. O-O-O
{[%clk 0:00:18.9]} 22... Qa5 {[%clk 0:00:33.6]} 23. Nf6+ {[%clk 0:00:20.1]}
23... Kf8 {[%clk 0:00:11.7]} 24. Nxh7+ {[%clk 0:00:15.9]} 24... Ke7 {[%clk
0:00:09.8]} 25. Nxc6+ {[%clk 0:00:16]} 25... bxc6 {[%clk 0:00:10.2]} 26. f6+
{[%clk 0:00:15.9]} 26... Kd7 {[%clk 0:00:10.3]} 27. Kb1 {[%clk 0:00:14.7]} 27...
Kc7 {[%clk 0:00:06.5]} 28. fxg7 {[%clk 0:00:15.4]} 28... Bf5 {[%clk 0:00:05.8]}
29. Nf6 {[%clk 0:00:13.9]} 29... Re5 {[%clk 0:00:05.4]} 30. Rxd6 {[%clk
0:00:14]} 30... Kxd6 {[%clk 0:00:06.5]} 31. Bf4 {[%clk 0:00:15.4]} 31... Re8
{[%clk 0:00:06.2]} 32. Rd1+ {[%clk 0:00:15.4]} 32... Kc7 {[%clk 0:00:06.9]} 33.
Nxe8+ {[%clk 0:00:16.4]} 1-0

[Event "*** Titled Tuesday Blitz"]
[Site "Chess.com"]
[Date "2018.12.04"]
[Round "4"]
[White "GMKrikor"]
[Black "NeverEverForever1990"]
[Result "1/2-1/2"]
[WhiteElo "2668"]
[BlackElo "2438"]
[TimeControl "180+2"]
[EndTime "13:49:56 PST"]
[Termination "Game drawn by repetition"]

1. e4 {[%clk 0:03:01.9]} 1... c5 {[%clk 0:02:53.8]} 2. Nf3 {[%clk 0:03:02.6]}
2... d6 {[%clk 0:02:51.7]} 3. d4 {[%clk 0:03:03.7]} 3... cxd4 {[%clk 0:02:51.6]}
4. Nxd4 {[%clk 0:03:05.6]} 4... Nf6 {[%clk 0:02:52.6]} 5. Nc3 {[%clk 0:03:07.2]}
5... a6 {[%clk 0:02:53.5]} 6. a3 {[%clk 0:03:03.5]} 6... Nc6 {[%clk 0:02:42.7]}
7. Be2 {[%clk 0:02:44.1]} 7... e5 {[%clk 0:02:42]} 8. Nf3 {[%clk 0:02:28.9]}
8... Be7 {[%clk 0:02:40.2]} 9. O-O {[%clk 0:02:22.4]} 9... O-O {[%clk
0:02:40.5]} 10. Bg5 {[%clk 0:02:23.6]} 10... Be6 {[%clk 0:02:20.9]} 11. Bxf6
{[%clk 0:02:10.8]} 11... Bxf6 {[%clk 0:02:22.8]} 12. Nd5 {[%clk 0:02:10]} 12...
Bxd5 {[%clk 0:02:05]} 13. Qxd5 {[%clk 0:02:10.5]} 13... Qc7 {[%clk 0:02:04.3]}
14. Rfd1 {[%clk 0:02:08.8]} 14... Rfd8 {[%clk 0:02:04.7]} 15. c3 {[%clk
0:02:09.6]} 15... Ne7 {[%clk 0:01:59.6]} 16. Qb3 {[%clk 0:02:08.4]} 16... Rac8
{[%clk 0:01:55.5]} 17. a4 {[%clk 0:01:55.9]} 17... Qc6 {[%clk 0:01:51]} 18. Bd3
{[%clk 0:01:56.8]} 18... d5 {[%clk 0:01:27.5]} 19. exd5 {[%clk 0:01:56.8]} 19...
Rxd5 {[%clk 0:01:27.6]} 20. Qc2 {[%clk 0:01:51.3]} 20... Ng6 {[%clk 0:01:19.6]}
21. Be4 {[%clk 0:01:41.6]} 21... Rxd1+ {[%clk 0:01:20.2]} 22. Rxd1 {[%clk
0:01:43.5]} 22... Qc7 {[%clk 0:01:21.4]} 23. g3 {[%clk 0:01:42]} 23... b6 {[%clk
0:01:19.4]} 24. Qb3 {[%clk 0:01:36.5]} 24... Rd8 {[%clk 0:01:19]} 25. Rxd8+
{[%clk 0:01:27]} 25... Qxd8 {[%clk 0:01:16.1]} 26. Qc4 {[%clk 0:01:10.6]} 26...
a5 {[%clk 0:01:12.4]} 27. Bd5 {[%clk 0:01:07.5]} 27... Qd7 {[%clk 0:00:55.4]}
28. Nd2 {[%clk 0:01:03.3]} 28... Bd8 {[%clk 0:00:50.8]} 29. Ne4 {[%clk
0:01:00.8]} 29... Kf8 {[%clk 0:00:51.8]} 30. Bc6 {[%clk 0:00:46.6]} 30... Qd1+
{[%clk 0:00:24.1]} 31. Kg2 {[%clk 0:00:47.3]} 31... Nh4+ {[%clk 0:00:19.2]} 32.
gxh4 {[%clk 0:00:42.6]} 32... Qg4+ {[%clk 0:00:20.2]} 33. Kf1 {[%clk 0:00:36.3]}
33... Qd1+ {[%clk 0:00:20.9]} 34. Kg2 {[%clk 0:00:35.4]} 34... Qg4+ {[%clk
0:00:22.4]} 35. Kh1 {[%clk 0:00:29.9]} 35... Qf3+ {[%clk 0:00:23.6]} 36. Kg1
{[%clk 0:00:29.9]} 36... Qg4+ {[%clk 0:00:25.2]} 37. Kf1 {[%clk 0:00:19]} 37...
Qd1+ {[%clk 0:00:26.4]} 38. Kg2 {[%clk 0:00:19.2]} 1/2-1/2

[Event "*** Titled Tuesday Blitz"]
[Site "Chess.com"]
[Date "2018.12.04"]
[Round "4"]
[White "Benek77"]
[Black "LonesomeGeorge1"]
[Result "1-0"]
[WhiteElo "2578"]
[BlackElo "2408"]
[TimeControl "180+2"]
[EndTime "13:49:58 PST"]
[Termination "Benek77 won by checkmate"]

1. e4 {[%clk 0:03:01.9]} 1... e5 {[%clk 0:03:00.2]} 2. Nf3 {[%clk 0:03:01.3]}
2... Nc6 {[%clk 0:03:01.8]} 3. Bb5 {[%clk 0:03:01.9]} 3... g6 {[%clk 0:03:02]}
4. O-O {[%clk 0:03:02.2]} 4... Bg7 {[%clk 0:03:02.8]} 5. c3 {[%clk 0:02:56.8]}
5... a6 {[%clk 0:03:03.3]} 6. Ba4 {[%clk 0:02:56.8]} 6... d6 {[%clk 0:03:04.5]}
7. d4 {[%clk 0:02:56.5]} 7... Bd7 {[%clk 0:03:05.5]} 8. Re1 {[%clk 0:02:54.7]}
8... Nf6 {[%clk 0:03:02]} 9. h3 {[%clk 0:02:52.2]} 9... b5 {[%clk 0:02:57.1]}
10. Bb3 {[%clk 0:02:52.9]} 10... O-O {[%clk 0:02:57.2]} 11. Nbd2 {[%clk
0:02:35.4]} 11... a5 {[%clk 0:02:47.3]} 12. a3 {[%clk 0:02:29.9]} 12... a4
{[%clk 0:02:46.1]} 13. Ba2 {[%clk 0:02:31.3]} 13... Re8 {[%clk 0:02:28.3]} 14.
Ng5 {[%clk 0:02:29.5]} 14... Re7 {[%clk 0:02:29.2]} 15. Ndf3 {[%clk 0:02:24.1]}
15... Be8 {[%clk 0:02:25]} 16. dxe5 {[%clk 0:02:20.5]} 16... dxe5 {[%clk
0:02:23.1]} 17. Qe2 {[%clk 0:02:21.7]} 17... h6 {[%clk 0:02:20.4]} 18. Nh4
{[%clk 0:02:23]} 18... hxg5 {[%clk 0:02:18.7]} 19. Nxg6 {[%clk 0:02:24]} 19...
Rd7 {[%clk 0:02:15]} 20. Bxg5 {[%clk 0:02:25.1]} 20... Na5 {[%clk 0:02:08.7]}
21. Nxe5 {[%clk 0:02:22.3]} 21... Re7 {[%clk 0:01:55.4]} 22. Ng4 {[%clk
0:02:09.8]} 22... Nxg4 {[%clk 0:01:19]} 23. Qxg4 {[%clk 0:02:10.5]} 23... Qd6
{[%clk 0:01:12.5]} 24. Bxe7 {[%clk 0:02:02.9]} 24... Qxe7 {[%clk 0:01:14.4]} 25.
Re3 {[%clk 0:01:58.7]} 25... Bd7 {[%clk 0:01:12.7]} 26. Qg3 {[%clk 0:01:57.1]}
26... Be6 {[%clk 0:01:06.9]} 27. Bxe6 {[%clk 0:01:50.5]} 27... fxe6 {[%clk
0:01:08.8]} 28. Rd3 {[%clk 0:01:48.5]} 28... Nc4 {[%clk 0:01:08.2]} 29. Rad1
{[%clk 0:01:49.6]} 29... Nd6 {[%clk 0:01:03.8]} 30. e5 {[%clk 0:01:47.9]} 30...
Nf5 {[%clk 0:01:04.7]} 31. Qf3 {[%clk 0:01:49.4]} 31... Rf8 {[%clk 0:01:04.8]}
32. Rd7 {[%clk 0:01:50.4]} 32... Qg5 {[%clk 0:01:05.3]} 33. Rxc7 {[%clk
0:01:41.8]} 33... Bxe5 {[%clk 0:01:05.3]} 34. Rc5 {[%clk 0:01:33.2]} 34... Bg7
{[%clk 0:00:40.9]} 35. Qe4 {[%clk 0:01:32]} 35... Qf6 {[%clk 0:00:38.4]} 36.
Rxb5 {[%clk 0:01:27]} 36... Nh4 {[%clk 0:00:28.4]} 37. Rd2 {[%clk 0:01:20.9]}
37... Qh6 {[%clk 0:00:27.2]} 38. Re2 {[%clk 0:01:18.5]} 38... e5 {[%clk
0:00:20.1]} 39. Qxa4 {[%clk 0:01:08.7]} 39... Qg5 {[%clk 0:00:20.9]} 40. Qg4
{[%clk 0:01:09.3]} 40... Qc1+ {[%clk 0:00:19.1]} 41. Kh2 {[%clk 0:01:10.6]}
41... Qh6 {[%clk 0:00:16.8]} 42. Rexe5 {[%clk 0:01:09.8]} 42... Rxf2 {[%clk
0:00:14.8]} 43. Rb8+ {[%clk 0:01:08.1]} 43... Rf8 {[%clk 0:00:10.8]} 44. Rxf8+
{[%clk 0:01:08.5]} 44... Kxf8 {[%clk 0:00:12.6]} 45. Qc8+ {[%clk 0:01:08.4]}
45... Kf7 {[%clk 0:00:13.2]} 46. Qe8+ {[%clk 0:01:09.5]} 46... Kf6 {[%clk
0:00:14]} 47. Qe6# {[%clk 0:01:10.3]} 1-0

[Event "*** Titled Tuesday Blitz"]
[Site "Chess.com"]
[Date "2018.12.04"]
[Round "4"]
[White "TigranLPetrosyan"]
[Black "afgano29"]
[Result "1-0"]
[WhiteElo "2814"]
[BlackElo "2627"]
[TimeControl "180+2"]
[EndTime "13:49:59 PST"]
[Termination "TigranLPetrosyan won by resignation"]

1. g3 {[%clk 0:03:01.9]} 1... Nf6 {[%clk 0:02:59.9]} 2. Bg2 {[%clk 0:03:03.8]}
2... d5 {[%clk 0:03:01.2]} 3. Nf3 {[%clk 0:03:01]} 3... g6 {[%clk 0:03:02.3]} 4.
c4 {[%clk 0:03:02]} 4... Bg7 {[%clk 0:03:02.7]} 5. cxd5 {[%clk 0:03:03.4]} 5...
Nxd5 {[%clk 0:03:04.6]} 6. O-O {[%clk 0:03:05.1]} 6... O-O {[%clk 0:03:05.6]} 7.
d4 {[%clk 0:03:07]} 7... Nb6 {[%clk 0:03:06.7]} 8. Nc3 {[%clk 0:03:06.1]} 8...
Nc6 {[%clk 0:03:08.1]} 9. e3 {[%clk 0:03:05.2]} 9... Re8 {[%clk 0:03:08.8]} 10.
a3 {[%clk 0:03:04.3]} 10... a5 {[%clk 0:03:07.7]} 11. Re1 {[%clk 0:03:03.7]}
11... Be6 {[%clk 0:03:06.9]} 12. Nd2 {[%clk 0:02:56.8]} 12... a4 {[%clk
0:02:56.5]} 13. Qc2 {[%clk 0:02:39.8]} 13... Ra5 {[%clk 0:02:52.5]} 14. Nce4
{[%clk 0:02:34.1]} 14... Bd5 {[%clk 0:02:45.3]} 15. b4 {[%clk 0:02:29.8]} 15...
axb3 {[%clk 0:02:42.4]} 16. Nxb3 {[%clk 0:02:31.1]} 16... Ra7 {[%clk 0:02:41.9]}
17. Nbc5 {[%clk 0:02:26.3]} 17... e5 {[%clk 0:02:38.7]} 18. dxe5 {[%clk
0:02:24.5]} 18... Nxe5 {[%clk 0:02:38.6]} 19. Rb1 {[%clk 0:02:15.9]} 19... Qe7
{[%clk 0:02:37.1]} 20. Rd1 {[%clk 0:02:09]} 20... Bc6 {[%clk 0:02:35.8]} 21. Bb2
{[%clk 0:01:58.5]} 21... Na4 {[%clk 0:02:30.3]} 22. Bd4 {[%clk 0:01:51.4]} 22...
b6 {[%clk 0:02:24.5]} 23. Nd3 {[%clk 0:01:36.2]} 23... Bxe4 {[%clk 0:01:52.7]}
24. Bxe4 {[%clk 0:01:33.8]} 24... Nxd3 {[%clk 0:01:53.6]} 25. Bxd3 {[%clk
0:01:23.4]} 25... Nc5 {[%clk 0:01:06.5]} 26. Bb5 {[%clk 0:01:19.1]} 26... Rea8
{[%clk 0:00:59.1]} 27. Bxc5 {[%clk 0:01:18.1]} 27... Qxc5 {[%clk 0:00:54]} 28.
Qxc5 {[%clk 0:01:18.3]} 28... bxc5 {[%clk 0:00:55.9]} 29. Bc6 {[%clk 0:01:17.9]}
29... Rc8 {[%clk 0:00:53]} 30. a4 {[%clk 0:01:18.4]} 30... c4 {[%clk 0:00:53]}
31. Rd7 {[%clk 0:01:12.7]} 31... c3 {[%clk 0:00:53]} 32. Bd5 {[%clk 0:01:10.8]}
32... Rxa4 {[%clk 0:00:36.7]} 33. Rc1 {[%clk 0:01:04.5]} 33... Rf8 {[%clk
0:00:32.4]} 34. Rxc7 {[%clk 0:01:05.1]} 34... Ra5 {[%clk 0:00:32.2]} 35. Bc4
{[%clk 0:01:01.6]} 35... h5 {[%clk 0:00:32.6]} 36. h4 {[%clk 0:00:59.3]} 36...
Rf5 {[%clk 0:00:30.9]} 37. Kg2 {[%clk 0:00:56.4]} 37... Kh7 {[%clk 0:00:30.5]}
38. f4 {[%clk 0:00:54.9]} 38... Kg8 {[%clk 0:00:21.6]} 39. e4 {[%clk 0:00:54.8]}
39... Ra5 {[%clk 0:00:21.7]} 40. e5 {[%clk 0:00:56.1]} 40... Raa8 {[%clk
0:00:17]} 41. Rxc3 {[%clk 0:00:56.5]} 41... Rad8 {[%clk 0:00:14]} 42. Rb3 {[%clk
0:00:57.5]} 42... Rd2+ {[%clk 0:00:07.8]} 43. Kf3 {[%clk 0:00:58.1]} 1-0